bitfinex-derivatives/quotes_BTCF0:USTF0_20250911
["timestamp","ask_amount","ask_price","bid_price","bid_amount"]
[1757572256759,0.88385534,114320.0,114310.0,0.04461]
[1757572256760,0.70201414,114320.0,114310.0,0.04461]
[1757572256953,1.51017414,114320.0,114310.0,0.04461]
[1757572257147,1.69201534,114320.0,114310.0,0.04461]
[1757572257652,0.88385534,114320.0,114310.0,0.04461]
[1757572257860,1.69197534,114320.0,114310.0,0.04461]
[1757572258560,0.88385534,114320.0,114310.0,0.04461]
[1757572258756,1.69197534,114320.0,114310.0,0.04461]
[1757572264363,0.97483686,114320.0,114310.0,0.04461]
[1757572264556,0.87872952,114320.0,114310.0,0.18102136]
[1757572264758,1.01514088,114320.0,114310.0,0.29125948]
[1757572265764,1.15155224,114320.0,114310.0,0.15484812]
[1757572265958,1.15155224,114320.0,114310.0,0.29125948]
[1757572266867,1.15155224,114320.0,114310.0,0.65105948]
[1757572267165,1.15151224,114320.0,114310.0,0.54182136]
[1757572267665,1.15151224,114320.0,114310.0,0.54082136]
[1757572267866,1.15151224,114320.0,114310.0,0.54282136]
[1757572268364,1.15151224,114320.0,114310.0,0.652948]
[1757572270066,0.20722088,114320.0,114310.0,0.902948]
[1757572270262,0.87860952,114320.0,114310.0,0.652948]
[1757572270462,1.01502088,114320.0,114310.0,0.902948]
[1757572270873,1.01502088,114320.0,114310.0,0.652948]
[1757572272470,1.01502088,114320.0,114310.0,0.54282136]
[1757572272865,0.87860952,114320.0,114310.0,0.54282136]
[1757572273066,1.01502088,114320.0,114310.0,0.54282136]
[1757572273271,0.87860952,114320.0,114310.0,0.54282136]
[1757572273569,1.01502088,114320.0,114310.0,0.54282136]
[1757572275370,0.87860952,114320.0,114310.0,0.652948]
[1757572275764,1.01502088,114320.0,114310.0,0.54282136]
[1757572277876,1.01502088,114320.0,114310.0,0.40641]
[1757572278175,1.01502088,114320.0,114310.0,0.54282136]
[1757572281276,1.01502088,114320.0,114310.0,0.65292254]
[1757572281677,1.01502088,114320.0,114310.0,0.54282136]
[1757572281980,1.01462088,114320.0,114310.0,0.40641]
[1757572282169,1.01462088,114320.0,114310.0,0.54282136]
[1757572282478,0.87820952,114320.0,114310.0,0.40641]
[1757572282676,1.01462088,114320.0,114310.0,0.54282136]
[1757572282878,1.01462088,114320.0,114310.0,0.40641]
[1757572283079,1.01462088,114320.0,114310.0,0.54282136]
[1757572283582,1.01462088,114320.0,114310.0,0.40641]
[1757572283978,1.01462088,114320.0,114310.0,0.54282136]
[1757572285380,1.01462088,114320.0,114310.0,0.40641]
[1757572285583,1.01462088,114320.0,114310.0,0.54282136]
[1757572287281,1.01462088,114320.0,114310.0,0.65294265]
[1757572287782,1.01462088,114320.0,114310.0,0.54282136]
[1757572289684,1.01462088,114320.0,114310.0,1.07282136]
[1757572290384,0.20722088,114320.0,114310.0,1.07282136]
[1757572290682,1.01438088,114320.0,114310.0,1.07282136]
[1757572290986,1.01438088,114320.0,114310.0,0.54282136]
[1757572291187,0.20722088,114320.0,114310.0,1.09282136]
[1757572291685,1.01434088,114320.0,114310.0,1.09282136]
[1757572293188,1.01434088,114320.0,114310.0,0.40641]
[1757572293392,1.01434088,114320.0,114310.0,1.15282136]
[1757572295093,1.01434088,114320.0,114310.0,1.09282136]
[1757572295394,1.01434088,114320.0,114310.0,1.20294265]
[1757572295596,1.01434088,114320.0,114310.0,0.65294265]
[1757572295792,1.01434088,114320.0,114310.0,1.13653129]
[1757572295982,1.01434088,114320.0,114310.0,1.22294265]
[1757572296187,1.01434088,114320.0,114310.0,0.65294265]
[1757572296386,1.01434088,114320.0,114310.0,1.22294265]
[1757572296894,1.01434088,114320.0,114310.0,0.65294265]
[1757572297192,1.01434088,114320.0,114310.0,1.24294265]
[1757572297894,1.01434088,114320.0,114310.0,1.13282136]
[1757572298286,1.01434088,114320.0,114310.0,1.24294265]
[1757572300295,1.01434088,114320.0,114310.0,0.88214265]
[1757572300594,1.01434088,114320.0,114310.0,1.17294265]
[1757572301299,1.01434088,114320.0,114310.0,0.65294265]
[1757572301593,1.01434088,114320.0,114310.0,0.54282136]
[1757572302493,0.87792952,114320.0,114310.0,0.54282136]
[1757572302692,1.01434088,114320.0,114310.0,0.54282136]
[1757572303396,0.20722088,114320.0,114310.0,1.10282136]
[1757572303594,1.01402088,114320.0,114310.0,1.10282136]
[1757572303998,1.01402088,114320.0,114310.0,0.54282136]
[1757572303999,0.87760952,114320.0,114310.0,0.54282136]
[1757572304197,1.01402088,114320.0,114310.0,0.54282136]
[1757572307597,1.01402088,114320.0,114310.0,0.65294265]
[1757572310193,0.87760952,114320.0,114310.0,0.65294265]
[1757572310396,1.01402088,114320.0,114310.0,0.65294265]
[1757572311600,1.15043224,114320.0,114310.0,0.65294265]
[1757572316605,0.87760952,114320.0,114310.0,0.65294265]
[1757572316906,1.15043224,114320.0,114310.0,0.65294265]
[1757572317297,0.87760952,114320.0,114310.0,0.65294265]
[1757572317497,1.15043224,114320.0,114310.0,0.65294265]
[1757572317795,0.07080952,114320.0,114310.0,0.65294265]
[1757572317996,1.01354088,114320.0,114310.0,1.20294265]
[1757572318605,1.01354088,114320.0,114310.0,0.51653129]
[1757572318902,1.01354088,114320.0,114310.0,1.19294265]
[1757572319292,0.20722088,114320.0,114310.0,1.19294265]
[1757572319697,1.01346088,114320.0,114310.0,1.08282136]
[1757572320101,1.01346088,114320.0,114310.0,1.19305301]
[1757572320304,1.01346088,114320.0,114310.0,0.65305301]
[1757572320502,1.01346088,114320.0,114310.0,1.27305301]
[1757572320803,0.87704952,114320.0,114310.0,0.65305301]
[1757572320999,1.01346088,114320.0,114310.0,1.16305301]
[1757572322601,1.01346088,114320.0,114310.0,1.05282136]
[1757572323006,0.20722088,114320.0,114310.0,1.05282136]
[1757572323201,1.01338088,114320.0,114310.0,1.05282136]
[1757572323804,4e-05,114320.0,114310.0,1.16305301]
[1757572324007,4e-05,114320.0,114310.0,1.63692387]
[1757572324008,0.80616,114320.0,114310.0,1.63692387]
[1757572324200,0.80616,114320.0,114310.0,1.39028086]
[1757572324899,0.80616,114320.0,114310.0,1.54764104]
[1757572326111,4e-05,114320.0,114310.0,1.54764104]
[1757572326411,0.80612,114320.0,114310.0,1.50213342]
[1757572327310,0.80612,114320.0,114310.0,1.34477324]
[1757572328103,0.80612,114320.0,114310.0,1.35333801]
[1757572328505,0.80612,114320.0,114310.0,1.46350576]
[1757572329210,4e-05,114320.0,114310.0,1.82430576]
[1757572329410,0.80604,114320.0,114310.0,1.82430576]
[1757572330813,0.80604,114320.0,114310.0,1.92574099]
[1757572331314,0.80604,114320.0,114310.0,1.81557324]
[1757572332009,0.80596,114320.0,114310.0,1.81557324]
[1757572332914,0.80596,114320.0,114310.0,1.82434005]
[1757572335811,0.80584,114320.0,114310.0,1.57434005]
[1757572337514,4e-05,114320.0,114310.0,1.57434005]
[1757572337818,4e-05,114320.0,114310.0,1.66524379]
[1757572339121,4e-05,114320.0,114310.0,2.47096379]
[1757572340224,4e-05,114320.0,114310.0,2.72096379]
[1757572341318,4e-05,114320.0,114310.0,2.87807797]
[1757572341515,0.82597112,114330.0,114320.0,0.1221919]
[1757572341716,0.82597112,114330.0,114320.0,1.18479938]
[1757572342921,0.82597112,114330.0,114320.0,1.19353938]
[1757572344224,0.82597112,114330.0,114320.0,1.19453938]
[1757572344523,0.82597112,114330.0,114320.0,1.30445669]
[1757572345020,0.82597112,114330.0,114320.0,1.19453938]
[1757572346024,0.82597112,114330.0,114320.0,1.35165356]
[1757572346724,0.80568,114330.0,114320.0,1.35165356]
[1757572347623,0.80568,114330.0,114320.0,1.19453938]
[1757572350022,0.8054,114350.0,114320.0,1.19453938]
[1757572350321,0.8054,114350.0,114340.0,0.39554]
[1757572350624,0.8054,114350.0,114340.0,1.03644374]
[1757572351426,0.8074,114350.0,114340.0,0.48644374]
[1757572351931,0.81612326,114350.0,114340.0,0.39554]
[1757572352127,0.81612326,114350.0,114340.0,0.48644374]
[1757572352320,0.81712326,114350.0,114340.0,0.48644374]
[1757572352729,0.81712326,114350.0,114340.0,0.39554]
[1757572352923,0.81712326,114350.0,114340.0,0.48644374]
[1757572353125,0.81612326,114350.0,114340.0,0.48644374]
[1757572353430,0.81712326,114350.0,114340.0,0.48644374]
[1757572353728,0.00304,114350.0,114340.0,1.17478418]
[1757572353928,0.00304,114350.0,114340.0,1.53558418]
[1757572354120,0.80524,114360.0,114350.0,0.087429]
[1757572354424,0.80524,114360.0,114350.0,1.25368703]
[1757572354629,0.80524,114360.0,114350.0,0.57387274]
[1757572354815,0.80524,114360.0,114350.0,1.10387274]
[1757572355020,0.80524,114360.0,114350.0,1.21368703]
[1757572355216,0.80524,114360.0,114350.0,0.59278329]
[1757572355424,0.80724,114360.0,114350.0,1.18387274]
[1757572355731,0.80724,114360.0,114350.0,0.57387274]
[1757572355923,0.80724,114360.0,114350.0,1.16387274]
[1757572356631,0.80724,114360.0,114350.0,1.17246981]
[1757572357132,0.00204,114360.0,114350.0,1.26337355]
[1757572357430,0.80712,114360.0,114350.0,1.26337355]
[1757572357641,0.80812,114360.0,114350.0,1.25477648]
[1757572358233,0.80812,114360.0,114350.0,1.36459077]
[1757572360623,0.80812,114360.0,114350.0,1.18278329]
[1757572360926,0.80812,114360.0,114350.0,1.36459077]
[1757572362334,0.80812,114360.0,114350.0,1.36436305]
[1757572362723,0.80812,114360.0,114350.0,1.25477648]
[1757572363341,0.00304,114360.0,114350.0,1.36435015]
[1757572363730,0.02007762,114380.0,114370.0,0.1221531]
[1757572364032,0.02007762,114380.0,114370.0,1.52465684]
[1757572364229,0.02007762,114380.0,114370.0,1.61556058]
[1757572365135,0.02307762,114380.0,114370.0,1.62430058]
[1757572365632,0.02007762,114380.0,114370.0,1.62430058]
[1757572365940,0.02107762,114380.0,114370.0,1.62430058]
[1757572367027,0.02207762,114380.0,114370.0,1.62430058]
[1757572368436,0.00204,114380.0,114370.0,1.62430058]
[1757572369936,0.00204,114380.0,114370.0,2.67886058]
[1757572370125,0.00204,114380.0,114370.0,2.78840954]
[1757572370330,0.00204,114380.0,114370.0,1.98384954]
[1757572370640,0.00204,114380.0,114370.0,2.67882058]
[1757572371139,0.00104,114380.0,114370.0,1.87430058]
[1757572371441,0.00104,114380.0,114370.0,2.67882058]
[1757572371835,0.00104,114380.0,114370.0,2.67878058]
[1757572372038,4e-05,114380.0,114370.0,2.67978058]
[1757572372339,4e-05,114400.0,114390.0,0.03623]
[1757572372539,4e-05,114400.0,114390.0,1.03793374]
[1757572373443,4e-05,114400.0,114390.0,0.48793374]
[1757572373639,0.00104,114400.0,114390.0,1.10793374]
[1757572374340,0.00104,114400.0,114390.0,1.05793374]
[1757572374541,0.80544,114400.0,114390.0,1.14883748]
[1757572374741,0.80544,114400.0,114390.0,1.05793374]
[1757572375243,0.80544,114400.0,114390.0,1.14883748]
[1757572375740,0.80744,114400.0,114390.0,0.48793374]
[1757572375936,0.80744,114400.0,114390.0,1.03793374]
[1757572376333,0.80536,114400.0,114390.0,1.03793374]
[1757572376538,0.80636,114400.0,114390.0,1.03793374]
[1757572376743,0.80636,114400.0,114390.0,0.48793374]
[1757572376936,0.80636,114400.0,114390.0,1.05793374]
[1757572377136,0.80636,114400.0,114390.0,0.48793374]
[1757572377430,0.80636,114400.0,114390.0,1.10793374]
[1757572377633,0.80636,114400.0,114390.0,1.19883748]
[1757572378044,0.80636,114400.0,114390.0,1.00793374]
[1757572378342,0.00204,114400.0,114390.0,1.00793374]
[1757572378542,0.80628,114400.0,114390.0,1.00793374]
[1757572378743,0.80628,114400.0,114390.0,0.57883748]
[1757572378946,0.80628,114400.0,114390.0,1.10883748]
[1757572379450,0.80628,114400.0,114390.0,1.55703558]
[1757572379451,0.00204,114400.0,114390.0,1.55703558]
[1757572379936,0.00204,114400.0,114390.0,2.52383748]
[1757572380142,0.00204,114400.0,114390.0,2.53257748]
[1757572380339,0.5609029,114430.0,114420.0,0.01346]
[1757572380540,1.3650629,114430.0,114420.0,0.12713374]
[1757572381945,1.45596664,114430.0,114420.0,0.03623]
[1757572382550,1.45896664,114430.0,114420.0,0.03623]
[1757572382740,1.3680629,114430.0,114420.0,0.12713374]
[1757572383044,1.3679829,114430.0,114420.0,0.12713374]
[1757572383239,1.81968664,114430.0,114420.0,0.03623]
[1757572383441,1.7307829,114430.0,114420.0,0.03623]
[1757572383742,1.82168664,114430.0,114420.0,0.03623]
[1757572384339,1.7307829,114430.0,114420.0,0.03623]
[1757572384541,1.7307829,114430.0,114420.0,0.12713374]
[1757572384945,1.7308229,114430.0,114420.0,0.12713374]
[1757572386651,1.7308229,114430.0,114420.0,0.03623]
[1757572386850,1.7308229,114430.0,114420.0,0.12713374]
[1757572387149,0.9267429,114430.0,114420.0,0.12713374]
[1757572387446,1.7307029,114430.0,114420.0,0.12713374]
[1757572388345,1.7307029,114430.0,114420.0,0.30846734]
[1757572389050,0.9247429,114430.0,114420.0,0.30846734]
[1757572389246,0.5639429,114430.0,114420.0,0.30846734]
[1757572389451,1.3677829,114430.0,114420.0,0.66926734]
[1757572389749,0.5639429,114430.0,114420.0,0.66926734]
[1757572389949,0.82534272,114430.0,114420.0,1.00664284]
[1757572390146,0.02250272,114430.0,114420.0,0.91926734]
[1757572390351,0.82634272,114430.0,114420.0,0.91926734]
[1757572390948,0.80592,114430.0,114420.0,0.91926734]
[1757572391252,0.00108,114430.0,114420.0,1.00664284]
[1757572391445,0.80488,114430.0,114420.0,1.14376151]
[1757572391647,0.80488,114430.0,114420.0,1.00764284]
[1757572392249,0.80388,114430.0,114420.0,1.00764284]
[1757572392450,0.80388,114430.0,114420.0,1.14576151]
[1757572393457,0.80388,114430.0,114420.0,1.05838601]
[1757572393845,0.80388,114430.0,114420.0,1.12777966]
[1757572394456,0.80388,114430.0,114420.0,1.21515466]
[1757572397051,0.80388,114430.0,114420.0,1.75515466]
[1757572397352,0.80388,114430.0,114420.0,1.07903599]
[1757572397754,0.80388,114430.0,114420.0,1.21515466]
[1757572397954,0.80388,114430.0,114420.0,1.07903599]
[1757572398155,0.80388,114430.0,114420.0,0.99166099]
[1757572402456,0.80388,114430.0,114420.0,1.00039099]
[1757572406361,0.80388,114430.0,114420.0,1.07852981]
[1757572406954,0.80388,114430.0,114420.0,1.00039099]
[1757572407360,0.80388,114430.0,114420.0,1.07852981]
[1757572409564,0.80388,114430.0,114420.0,1.00039099]
[1757572409751,0.80388,114430.0,114420.0,1.10993995]
[1757572410966,0.80388,114430.0,114420.0,1.188206]
[1757572411463,0.80388,114430.0,114420.0,1.07865704]
[1757572412365,0.80388,114430.0,114420.0,1.00039099]
[1757572412860,0.80388,114430.0,114420.0,0.55643737]
[1757572413165,1.18999867,114430.0,114420.0,0.12625702]
[1757572413465,1.18999867,114430.0,114420.0,0.26237569]
[1757572413865,1.18999867,114430.0,114420.0,0.39849436]
[1757572414166,1.18999867,114430.0,114420.0,0.26237569]
[1757572415557,1.68691734,114430.0,114420.0,0.10348702]
[1757572415761,1.68691734,114430.0,114420.0,0.01173]
[1757572416468,1.55079867,114430.0,114420.0,0.01173]
[1757572417062,1.68691734,114430.0,114420.0,0.01173]
[1757572418369,1.82303601,114430.0,114400.0,0.01346]
[1757572418565,0.99383734,114410.0,114400.0,0.01346]
[1757572418766,1.66091867,114410.0,114400.0,0.01346]
[1757572419466,1.79703734,114410.0,114400.0,0.01346]
[1757572419666,1.66091867,114410.0,114400.0,0.01346]
[1757572419866,1.66091867,114410.0,114400.0,0.01446]
[1757572419867,1.66952448,114410.0,114400.0,0.01446]
[1757572420768,1.87544826,114410.0,114400.0,0.01646]
[1757572420968,1.87544826,114410.0,114400.0,0.01846]
[1757572421168,2.12544826,114410.0,114400.0,0.01846]
[1757572421369,1.98932959,114410.0,114400.0,0.01846]
[1757572421569,1.98932959,114410.0,114400.0,0.02046]
[1757572422266,2.12544826,114410.0,114400.0,0.007]
[1757572422466,1.32224826,114410.0,114400.0,0.007]
[1757572422668,2.12544826,114410.0,114400.0,0.007]
[1757572423267,0.93612959,114410.0,114400.0,0.04299]
[1757572423472,1.60321092,114410.0,114400.0,0.17910867]
[1757572423672,1.73932959,114410.0,114400.0,0.17910867]
[1757572424870,0.93612959,114410.0,114400.0,0.17910867]
[1757572425075,1.73932959,114410.0,114400.0,0.17910867]
[1757572425368,1.87544826,114410.0,114400.0,0.02082]
[1757572425773,2.12544826,114410.0,114400.0,0.02082]
[1757572426676,2.12544826,114410.0,114400.0,0.01982]
[1757572427169,1.98932959,114410.0,114400.0,0.01982]
[1757572427775,2.12544826,114410.0,114400.0,0.01982]
[1757572428077,2.12544826,114410.0,114400.0,0.01882]
[1757572436485,1.32224826,114410.0,114400.0,0.01882]
[1757572436791,2.12536826,114410.0,114400.0,0.01882]
[1757572437291,1.85313092,114410.0,114400.0,0.01882]
[1757572437489,2.12532826,114410.0,114400.0,0.01882]
[1757572440194,3.88808826,114410.0,114400.0,0.01882]
[1757572443390,3.63808826,114410.0,114400.0,0.005]
[1757572443594,3.63808826,114410.0,114400.0,0.01374]
[1757572443896,3.63808826,114410.0,114400.0,0.02737]
[1757572444395,3.63808826,114410.0,114400.0,0.01374]
[1757572448292,3.54750686,114410.0,114400.0,0.01374]
[1757572448492,3.79750686,114410.0,114390.0,0.01346]
[1757572448695,0.54245594,114400.0,114390.0,0.01346]
[1757572448992,0.54245594,114400.0,114380.0,0.09228448]
[1757572448993,0.65379039,114400.0,114380.0,0.01382]
[1757572449193,1.34537594,114390.0,114380.0,0.01382]
[1757572450398,1.34537594,114390.0,114370.0,0.10133448]
[1757572450598,0.54245594,114380.0,114370.0,0.02287]
[1757572451992,0.3608,114380.0,114370.0,0.02287]
[1757572452194,0.54245594,114380.0,114370.0,0.02287]
[1757572452698,0.3608,114380.0,114370.0,0.02487]
[1757572452897,0.54245594,114380.0,114370.0,0.02487]
[1757572453291,0.54245594,114380.0,114370.0,0.02987]
[1757572453597,1.34537594,114380.0,114370.0,0.02987]
[1757572453799,1.34537594,114380.0,114370.0,0.02487]
[1757572454000,1.34537594,114380.0,114370.0,0.01305]
[1757572455197,1.68620391,114380.0,114370.0,0.01305]
[1757572455395,1.59537594,114380.0,114370.0,0.01305]
[1757572455597,1.59537594,114380.0,114360.0,0.01363]
[1757572455798,0.45162797,114370.0,114360.0,0.01363]
[1757572456595,0.45162797,114370.0,114350.0,0.01363]
[1757572456796,1.34537594,114360.0,114350.0,0.01363]
[1757572458499,1.34537594,114360.0,114350.0,0.01863]
[1757572458892,1.41512067,114360.0,114350.0,0.01863]
[1757572459698,1.42398063,114360.0,114350.0,0.01863]
[1757572459997,1.42398063,114360.0,114350.0,0.02163]
[1757572460701,1.33319266,114360.0,114350.0,0.04402]
[1757572461302,1.42402063,114360.0,114350.0,0.04402]
[1757572461903,1.24236469,114360.0,114350.0,0.04402]
[1757572462203,1.42402063,114360.0,114350.0,0.04402]
[1757572462404,1.42402063,114360.0,114350.0,0.02163]
[1757572462595,1.42402063,114360.0,114350.0,0.04485]
[1757572463603,0.61220067,114360.0,114350.0,0.04485]
[1757572463803,1.41584067,114360.0,114350.0,0.04485]
[1757572464204,1.42460597,114360.0,114350.0,0.04485]
[1757572467906,0.62096597,114360.0,114350.0,0.04485]
[1757572468109,1.43120597,114360.0,114350.0,0.04485]
[1757572468305,0.62096597,114360.0,114350.0,0.04485]
[1757572468502,1.43108597,114360.0,114350.0,0.04485]
[1757572468707,0.43054473,114360.0,114350.0,0.04485]
[1757572468909,0.38148429,114370.0,114360.0,0.01304]
[1757572469103,0.02068429,114370.0,114360.0,0.37708797]
[1757572469394,0.83088429,114370.0,114360.0,0.59791594]
[1757572469599,0.02068429,114370.0,114360.0,0.95871594]
[1757572469799,0.02068429,114370.0,114360.0,1.03718042]
[1757572469999,0.02068429,114370.0,114360.0,1.41613644]
[1757572470206,0.02068429,114370.0,114360.0,1.41813644]
[1757572470411,0.66172429,114370.0,114360.0,1.41813644]
[1757572470908,0.83072429,114370.0,114360.0,1.41813644]
[1757572471304,0.83072429,114370.0,114360.0,1.42979765]
[1757572471610,0.83072429,114370.0,114360.0,1.53934661]
[1757572472608,0.83072429,114370.0,114360.0,1.42979765]
[1757572473310,0.83020429,114370.0,114360.0,1.42979765]
[1757572474499,0.83020429,114370.0,114360.0,1.53934661]
[1757572475310,0.83020429,114370.0,114360.0,1.5306854]
[1757572476209,0.80952,114370.0,114360.0,1.5306854]
[1757572476910,0.80952,114370.0,114360.0,1.4432649]
[1757572478018,0.80952,114370.0,114360.0,1.33371594]
[1757572479009,0.90034797,114370.0,114360.0,0.40206]
[1757572479208,0.90034797,114370.0,114360.0,0.51160478]
[1757572479414,0.80952,114370.0,114360.0,0.68067761]
[1757572479715,0.09082797,114380.0,114370.0,0.03626]
[1757572480014,0.89950797,114380.0,114370.0,0.39706]
[1757572480511,0.80868,114380.0,114370.0,0.39706]
[1757572480708,0.89950797,114380.0,114370.0,0.39706]
[1757572480911,0.89950797,114380.0,114370.0,0.39906]
[1757572482515,0.80868,114380.0,114370.0,0.47729567]
[1757572482715,0.89950797,114380.0,114370.0,0.47729567]
[1757572483109,0.89950797,114380.0,114370.0,0.47829567]
[1757572485113,1.35113594,114380.0,114370.0,0.03926]
[1757572485512,1.60113594,114380.0,114370.0,0.03926]
[1757572486120,1.60113594,114380.0,114370.0,0.11749567]
[1757572490312,1.51030797,114380.0,114370.0,0.11749567]
[1757572493215,1.60113594,114380.0,114370.0,0.11749567]
[1757572495017,1.60113594,114380.0,114370.0,0.03926]
[1757572495819,0.79245594,114380.0,114370.0,0.14880478]
[1757572496520,1.59825594,114380.0,114370.0,0.14880478]
[1757572497827,0.6108,114380.0,114370.0,0.14880478]
[1757572498030,1.50722797,114380.0,114370.0,0.14880478]
[1757572498524,1.59805594,114380.0,114370.0,0.14880478]
[1757572498828,1.59805594,114380.0,114370.0,0.15754478]
[1757572499122,1.34805594,114380.0,114370.0,0.15754478]
[1757572499723,1.34805594,114380.0,114370.0,0.048]
[1757572500323,1.34805594,114380.0,114370.0,0.12652575]
[1757572500531,0.3608,114380.0,114370.0,0.12652575]
[1757572500833,0.45130589,114390.0,114380.0,0.0352]
[1757572501128,1.34869386,114390.0,114380.0,0.11372575]
[1757572501332,1.34869386,114390.0,114380.0,0.0352]
[1757572501720,0.45130589,114390.0,114380.0,0.0352]
[1757572501923,1.34857386,114390.0,114380.0,0.0352]
[1757572502525,0.54213386,114390.0,114380.0,0.0352]
[1757572502924,1.34841386,114390.0,114380.0,0.0352]
[1757572503121,0.45130589,114390.0,114380.0,0.0352]
[1757572503329,0.98761386,114390.0,114380.0,0.14474478]
[1757572503829,0.98761386,114390.0,114380.0,0.14574478]
[1757572505529,0.89678589,114390.0,114380.0,0.14574478]
[1757572505835,0.18133386,114390.0,114380.0,0.14574478]
[1757572506035,0.98729386,114390.0,114380.0,0.14574478]
[1757572507037,0.89646589,114390.0,114380.0,0.14574478]
[1757572507334,0.98729386,114390.0,114380.0,0.14574478]
[1757572507533,1.34809386,114390.0,114380.0,0.14574478]
[1757572507730,1.34809386,114390.0,114380.0,0.12348478]
[1757572507933,1.34809386,114390.0,114380.0,0.01394]
[1757572508336,1.52977011,114390.0,114380.0,0.01394]
[1757572508631,0.72381011,114390.0,114380.0,0.14574478]
[1757572508829,1.394158,114390.0,114380.0,0.14574478]
[1757572509230,1.033358,114390.0,114380.0,0.14574478]
[1757572509532,0.226758,114390.0,114380.0,0.0362]
[1757572509736,1.033358,114390.0,114380.0,0.0362]
[1757572510338,0.09050589,114390.0,114380.0,0.0362]
[1757572510531,0.09050589,114390.0,114380.0,0.42870422]
[1757572510743,0.89946589,114390.0,114380.0,0.779049]
[1757572510929,0.09050589,114390.0,114380.0,0.779049]
[1757572511131,0.0205837,114390.0,114380.0,1.04950422]
[1757572511435,0.8294637,114390.0,114380.0,1.38950422]
[1757572511630,0.8294637,114390.0,114380.0,0.91950422]
[1757572512436,0.8294637,114390.0,114380.0,1.02940788]
[1757572514435,0.8294637,114390.0,114380.0,0.91950422]
[1757572514631,0.8294637,114390.0,114380.0,0.647]
[1757572514836,0.96571581,114390.0,114380.0,0.8930882]
[1757572516337,0.96571581,114390.0,114380.0,0.75683609]
[1757572516642,0.96571581,114390.0,114380.0,0.78325211]
[1757572517242,0.96571581,114390.0,114380.0,0.647]
[1757572517546,0.96571581,114390.0,114380.0,0.78325211]
[1757572518043,0.96571581,114390.0,114380.0,0.647]
[1757572518245,0.96571581,114390.0,114380.0,0.78325211]
[1757572519044,0.8294637,114390.0,114380.0,0.78325211]
[1757572519246,0.96571581,114390.0,114380.0,0.78325211]
[1757572519740,0.8294637,114390.0,114380.0,0.78325211]
[1757572520046,0.96571581,114390.0,114380.0,0.78325211]
[1757572521445,0.96571581,114390.0,114380.0,0.647]
[1757572521645,0.96571581,114390.0,114380.0,0.78325211]
[1757572522047,0.96571581,114390.0,114380.0,0.86169008]
[1757572522649,0.96571581,114390.0,114380.0,0.47543797]
[1757572522837,0.8294637,114390.0,114380.0,0.47543797]
[1757572523037,0.96571581,114390.0,114380.0,0.47543797]
[1757572523338,0.96571581,114390.0,114380.0,0.12337797]
[1757572524048,0.96571581,114390.0,114380.0,0.15477609]
[1757572524747,0.15683581,114390.0,114380.0,0.15477609]
[1757572524946,0.96523581,114390.0,114380.0,0.15477609]
[1757572525245,0.96523581,114390.0,114380.0,0.04494]
[1757572527446,0.96523581,114390.0,114380.0,0.15470989]
[1757572527838,0.96471581,114390.0,114380.0,0.15470989]
[1757572529452,0.15683581,114390.0,114380.0,0.15470989]
[1757572529746,0.96471581,114390.0,114380.0,0.15470989]
[1757572530645,0.96471581,114390.0,114380.0,0.04494]
[1757572530955,0.15683581,114390.0,114380.0,0.04494]
[1757572531245,0.15683581,114390.0,114380.0,0.18119211]
[1757572531246,0.96435581,114390.0,114380.0,0.18119211]
[1757572531446,0.0205837,114390.0,114380.0,0.18119211]
[1757572531647,0.96431581,114390.0,114380.0,0.31744422]
[1757572531848,0.96431581,114390.0,114380.0,0.18119211]
[1757572532342,0.15683581,114390.0,114380.0,0.18119211]
[1757572532546,0.96439581,114390.0,114380.0,0.54199211]
[1757572533553,0.15683581,114390.0,114380.0,0.54199211]
[1757572533751,0.96419581,114390.0,114380.0,0.54199211]
[1757572534153,0.15683581,114390.0,114380.0,0.54199211]
[1757572534451,0.96411581,114390.0,114380.0,0.54199211]
[1757572535055,0.15683581,114390.0,114380.0,0.89199211]
[1757572535245,0.96395581,114390.0,114380.0,0.89199211]
[1757572537353,0.96395581,114390.0,114380.0,1.0018435]
[1757572537656,0.15683581,114390.0,114380.0,1.0018435]
[1757572537857,0.45053745,114400.0,114390.0,0.03438]
[1757572538049,1.39362956,114400.0,114390.0,0.17063211]
[1757572538247,1.52988167,114400.0,114390.0,0.17063211]
[1757572538860,1.25737745,114400.0,114390.0,0.17063211]
[1757572539158,1.52988167,114400.0,114390.0,0.17063211]
[1757572539357,0.63430422,114400.0,114390.0,0.17063211]
[1757572539654,0.63430422,114400.0,114390.0,0.6412835]
[1757572539655,0.80768,114400.0,114390.0,0.6412835]
[1757572540049,0.80768,114400.0,114390.0,0.6500235]
[1757572540245,0.80668,114400.0,114390.0,0.54017211]
[1757572540457,0.80668,114400.0,114390.0,0.54217211]
[1757572541163,0.80668,114400.0,114390.0,0.54317211]
[1757572541452,1.89901211,114410.0,114400.0,0.03438]
[1757572541650,2.70557211,114410.0,114400.0,0.28049076]
[1757572542252,2.77590149,114410.0,114400.0,0.64129076]
[1757572542452,2.77590149,114410.0,114400.0,0.53143211]
[1757572542655,1.76276,114410.0,114400.0,0.53343211]
[1757572542859,1.76276,114410.0,114400.0,0.66968422]
[1757572543058,0.15644011,114420.0,114410.0,0.03438]
[1757572543259,0.96276011,114420.0,114410.0,0.53143211]
[1757572543559,0.826508,114420.0,114410.0,0.53143211]
[1757572543760,0.96276011,114420.0,114410.0,0.53143211]
[1757572544550,0.826508,114420.0,114410.0,0.53143211]
[1757572544946,0.96276011,114420.0,114410.0,0.53143211]
[1757572545158,0.96276011,114420.0,114410.0,0.60974424]
[1757572545460,0.94257211,114420.0,114410.0,0.60974424]
[1757572545760,0.94257211,114420.0,114410.0,0.53143211]
[1757572547460,0.94257211,114420.0,114410.0,0.64100795]
[1757572549366,0.94257211,114420.0,114410.0,0.53143211]
[1757572549564,0.94257211,114420.0,114410.0,0.60966876]
[1757572550061,0.80632,114420.0,114410.0,0.60966876]
[1757572550261,0.94257211,114420.0,114410.0,0.60966876]
[1757572551064,0.80632,114420.0,114410.0,0.60966876]
[1757572551268,0.94257211,114420.0,114410.0,0.60966876]
[1757572551772,0.06990786,114430.0,114420.0,0.03606]
[1757572551965,1.01107997,114430.0,114420.0,0.17231211]
[1757572552366,1.01107997,114430.0,114420.0,0.03606]
[1757572552565,1.01107997,114430.0,114420.0,0.17231211]
[1757572552871,1.01107997,114430.0,114420.0,0.25054876]
[1757572553174,1.01207997,114430.0,114420.0,0.25054876]
[1757572554459,1.01207997,114430.0,114420.0,0.11429665]
[1757572555075,1.01207997,114430.0,114420.0,0.03606]
[1757572555374,0.94177211,114430.0,114420.0,0.17231211]
[1757572558279,0.80552,114430.0,114420.0,0.17231211]
[1757572558480,0.8052,114430.0,114420.0,0.17231211]